Workbook

Sheet Svod
B1: -1 | C1: 0 | D1: 1 | E1: 2 | F1: 3
A2: Вид | B2: 2017-09-01 | C2: 2017-09-24
A3: Данные | B3: Пар_1 | C3: Пар_2 | D3: Пар_3 | E3: Пар_4 | F3: Пар_5
A4: Ан-1 | B4: =OFFSET(src!$C$1,MATCH($A4,src!$B:$B,0)+B$1,Svod!$C$2-src!$C$1,1,1) -> 54 | C4: =OFFSET(src!$C$1,MATCH($A4,src!$B:$B,0)+C$1,Svod!$C$2-src!$C$1,1,1) -> 56 | D4: =OFFSET(src!$C$1,MATCH($A4,src!$B:$B,0)+D$1,Svod!$C$2-src!$C$1,1,1) -> 50 | E4: =OFFSET(src!$C$1,MATCH($A4,src!$B:$B,0)+E$1,Svod!$C$2-src!$C$1,1,1) -> 69 | F4: =OFFSET(src!$C$1,MATCH($A4,src!$B:$B,0)+F$1,Svod!$C$2-src!$C$1,1,1) -> 84
A5: Ан-2 | B5: =OFFSET(src!$C$1,MATCH($A5,src!$B:$B,0)+B$1,Svod!$C$2-src!$C$1,1,1) -> 18 | C5: =OFFSET(src!$C$1,MATCH($A5,src!$B:$B,0)+C$1,Svod!$C$2-src!$C$1,1,1) -> 79 | D5: =OFFSET(src!$C$1,MATCH($A5,src!$B:$B,0)+D$1,Svod!$C$2-src!$C$1,1,1) -> 55 | E5: =OFFSET(src!$C$1,MATCH($A5,src!$B:$B,0)+E$1,Svod!$C$2-src!$C$1,1,1) -> 33 | F5: =OFFSET(src!$C$1,MATCH($A5,src!$B:$B,0)+F$1,Svod!$C$2-src!$C$1,1,1) -> 37
A6: Ан-3 | B6: =OFFSET(src!$C$1,MATCH($A6,src!$B:$B,0)+B$1,Svod!$C$2-src!$C$1,1,1) -> 11 | C6: =OFFSET(src!$C$1,MATCH($A6,src!$B:$B,0)+C$1,Svod!$C$2-src!$C$1,1,1) -> 63 | D6: =OFFSET(src!$C$1,MATCH($A6,src!$B:$B,0)+D$1,Svod!$C$2-src!$C$1,1,1) -> 9 | E6: =OFFSET(src!$C$1,MATCH($A6,src!$B:$B,0)+E$1,Svod!$C$2-src!$C$1,1,1) -> 74 | F6: =OFFSET(src!$C$1,MATCH($A6,src!$B:$B,0)+F$1,Svod!$C$2-src!$C$1,1,1) -> 97
A7: Ан-4 | B7: =OFFSET(src!$C$1,MATCH($A7,src!$B:$B,0)+B$1,Svod!$C$2-src!$C$1,1,1) -> 98 | C7: =OFFSET(src!$C$1,MATCH($A7,src!$B:$B,0)+C$1,Svod!$C$2-src!$C$1,1,1) -> 51 | D7: =OFFSET(src!$C$1,MATCH($A7,src!$B:$B,0)+D$1,Svod!$C$2-src!$C$1,1,1) -> 18 | E7: =OFFSET(src!$C$1,MATCH($A7,src!$B:$B,0)+E$1,Svod!$C$2-src!$C$1,1,1) -> 77 | F7: =OFFSET(src!$C$1,MATCH($A7,src!$B:$B,0)+F$1,Svod!$C$2-src!$C$1,1,1) -> 30
A8: Ан-5 | B8: =OFFSET(src!$C$1,MATCH($A8,src!$B:$B,0)+B$1,Svod!$C$2-src!$C$1,1,1) -> 54 | C8: =OFFSET(src!$C$1,MATCH($A8,src!$B:$B,0)+C$1,Svod!$C$2-src!$C$1,1,1) -> 9 | D8: =OFFSET(src!$C$1,MATCH($A8,src!$B:$B,0)+D$1,Svod!$C$2-src!$C$1,1,1) -> 55 | E8: =OFFSET(src!$C$1,MATCH($A8,src!$B:$B,0)+E$1,Svod!$C$2-src!$C$1,1,1) -> 54 | F8: =OFFSET(src!$C$1,MATCH($A8,src!$B:$B,0)+F$1,Svod!$C$2-src!$C$1,1,1) -> 20
B32: =uni_agregat(A4:A8,B2,C2) -> 

Sheet src
A1: Параметры | B1: Данные | C1: 2017-09-01 | D1: =C1+1 -> 2017-09-02 | E1: =D1+1 -> 2017-09-03 | F1: 2017-09-04 | G1: 2017-09-05 | H1: 2017-09-06 | I1: 2017-09-07 | J1: 2017-09-08 | K1: 2017-09-09 | L1: 2017-09-10 | M1: 2017-09-11 | N1: 2017-09-12 | O1: 2017-09-13 | P1: 2017-09-14 | Q1: 2017-09-15 | R1: 2017-09-16 | S1: 2017-09-17 | T1: 2017-09-18 | U1: 2017-09-19 | V1: 2017-09-20 | W1: 2017-09-21 | X1: 2017-09-22 | Y1: 2017-09-23 | Z1: 2017-09-24
A2: Пар_1 | B2: Ан-1 | C2: 30 | D2: 33 | E2: 26 | F2: 63 | G2: 95 | H2: 60 | I2: 23 | J2: 59 | K2: 72 | L2: 37 | M2: 18 | N2: 15 | O2: 99 | P2: 72 | Q2: 82 | R2: 75 | S2: 10 | T2: 88 | U2: 80 | V2: 88 | W2: 22 | X2: 75 | Y2: 35 | Z2: 54
A3: Пар_2 | C3: 45 | D3: 66 | E3: 86 | F3: 77 | G3: 64 | H3: 81 | I3: 85 | J3: 68 | K3: 10 | L3: 99 | M3: 58 | N3: 76 | O3: 37 | P3: 92 | Q3: 78 | R3: 19 | S3: 93 | T3: 9 | U3: 55 | V3: 8 | W3: 80 | X3: 28 | Y3: 17 | Z3: 56
A4: Пар_3 | C4: 81 | D4: 47 | E4: 45 | F4: 44 | G4: 27 | H4: 63 | I4: 56 | J4: 44 | K4: 97 | L4: 89 | M4: 88 | N4: 60 | O4: 51 | P4: 32 | Q4: 36 | R4: 61 | S4: 31 | T4: 36 | U4: 59 | V4: 96 | W4: 93 | X4: 85 | Y4: 71 | Z4: 50
A5: Пар_4 | C5: 47 | D5: 26 | E5: 33 | F5: 29 | G5: 1 | H5: 98 | I5: 22 | J5: 13 | K5: 85 | L5: 40 | M5: 99 | N5: 27 | O5: 100 | P5: 38 | Q5: 80 | R5: 66 | S5: 65 | T5: 83 | U5: 16 | V5: 13 | W5: 69 | X5: 85 | Y5: 51 | Z5: 69
A6: Пар_5 | C6: 10 | D6: 27 | E6: 51 | F6: 45 | G6: 81 | H6: 55 | I6: 89 | J6: 97 | K6: 43 | L6: 77 | M6: 2 | N6: 12 | O6: 63 | P6: 51 | Q6: 16 | R6: 33 | S6: 80 | T6: 48 | U6: 45 | V6: 85 | W6: 59 | X6: 2 | Y6: 26 | Z6: 84
A7: Пар_1 | B7: Ан-2 | C7: 3 | D7: 92 | E7: 70 | F7: 3 | G7: 44 | H7: 38 | I7: 89 | J7: 95 | K7: 64 | L7: 36 | M7: 85 | N7: 62 | O7: 38 | P7: 5 | Q7: 10 | R7: 69 | S7: 21 | T7: 38 | U7: 15 | V7: 83 | W7: 52 | X7: 26 | Y7: 92 | Z7: 18
A8: Пар_2 | C8: 49 | D8: 15 | E8: 48 | F8: 36 | G8: 36 | H8: 66 | I8: 91 | J8: 62 | K8: 91 | L8: 34 | M8: 53 | N8: 31 | O8: 90 | P8: 16 | Q8: 24 | R8: 72 | S8: 1 | T8: 95 | U8: 24 | V8: 88 | W8: 22 | X8: 55 | Y8: 37 | Z8: 79
A9: Пар_3 | C9: 26 | D9: 42 | E9: 77 | F9: 10 | G9: 96 | H9: 74 | I9: 44 | J9: 42 | K9: 88 | L9: 99 | M9: 40 | N9: 95 | O9: 68 | P9: 86 | Q9: 39 | R9: 47 | S9: 28 | T9: 9 | U9: 83 | V9: 86 | W9: 31 | X9: 74 | Y9: 58 | Z9: 55
A10: Пар_4 | C10: 64 | D10: 53 | E10: 5 | F10: 69 | G10: 2 | H10: 64 | I10: 92 | J10: 19 | K10: 81 | L10: 19 | M10: 38 | N10: 12 | O10: 26 | P10: 3 | Q10: 40 | R10: 85 | S10: 90 | T10: 44 | U10: 73 | V10: 10 | W10: 84 | X10: 73 | Y10: 41 | Z10: 33
A11: Пар_5 | C11: 64 | D11: 32 | E11: 22 | F11: 26 | G11: 87 | H11: 42 | I11: 98 | J11: 32 | K11: 54 | L11: 46 | M11: 82 | N11: 82 | O11: 55 | P11: 10 | Q11: 91 | R11: 62 | S11: 27 | T11: 45 | U11: 81 | V11: 60 | W11: 61 | X11: 22 | Y11: 52 | Z11: 37
A12: Пар_1 | B12: Ан-3 | C12: 44 | D12: 11 | E12: 12 | F12: 4 | G12: 68 | H12: 1 | I12: 90 | J12: 6 | K12: 71 | L12: 8 | M12: 22 | N12: 41 | O12: 93 | P12: 29 | Q12: 70 | R12: 45 | S12: 19 | T12: 35 | U12: 24 | V12: 69 | W12: 33 | X12: 4 | Y12: 9 | Z12: 11
A13: Пар_2 | C13: 32 | D13: 56 | E13: 49 | F13: 44 | G13: 47 | H13: 28 | I13: 68 | J13: 91 | K13: 44 | L13: 95 | M13: 10 | N13: 97 | O13: 62 | P13: 25 | Q13: 64 | R13: 31 | S13: 10 | T13: 54 | U13: 27 | V13: 9 | W13: 38 | X13: 94 | Y13: 70 | Z13: 63
A14: Пар_3 | C14: 6 | D14: 44 | E14: 41 | F14: 14 | G14: 23 | H14: 84 | I14: 89 | J14: 31 | K14: 45 | L14: 82 | M14: 84 | N14: 100 | O14: 12 | P14: 72 | Q14: 25 | R14: 72 | S14: 41 | T14: 71 | U14: 4 | V14: 74 | W14: 87 | X14: 9 | Y14: 39 | Z14: 9
A15: Пар_4 | C15: 17 | D15: 61 | E15: 70 | F15: 61 | G15: 47 | H15: 5 | I15: 63 | J15: 99 | K15: 100 | L15: 69 | M15: 5 | N15: 93 | O15: 43 | P15: 32 | Q15: 79 | R15: 14 | S15: 31 | T15: 35 | U15: 75 | V15: 11 | W15: 78 | X15: 13 | Y15: 70 | Z15: 74
A16: Пар_5 | C16: 32 | D16: 30 | E16: 84 | F16: 16 | G16: 21 | H16: 87 | I16: 38 | J16: 37 | K16: 98 | L16: 94 | M16: 16 | N16: 55 | O16: 5 | P16: 83 | Q16: 56 | R16: 87 | S16: 24 | T16: 17 | U16: 5 | V16: 61 | W16: 26 | X16: 47 | Y16: 20 | Z16: 97
A17: Пар_1 | B17: Ан-4 | C17: 69 | D17: 85 | E17: 30 | F17: 27 | G17: 88 | H17: 17 | I17: 38 | J17: 55 | K17: 25 | L17: 2 | M17: 8 | N17: 45 | O17: 45 | P17: 81 | Q17: 74 | R17: 71 | S17: 93 | T17: 28 | U17: 65 | V17: 98 | W17: 75 | X17: 66 | Y17: 51 | Z17: 98
A18: Пар_2 | C18: 52 | D18: 84 | E18: 6 | F18: 17 | G18: 78 | H18: 84 | I18: 23 | J18: 29 | K18: 58 | L18: 82 | M18: 49 | N18: 24 | O18: 28 | P18: 13 | Q18: 3 | R18: 96 | S18: 68 | T18: 82 | U18: 74 | V18: 12 | W18: 5 | X18: 96 | Y18: 93 | Z18: 51
A19: Пар_3 | C19: 14 | D19: 51 | E19: 69 | F19: 77 | G19: 34 | H19: 37 | I19: 55 | J19: 95 | K19: 86 | L19: 41 | M19: 71 | N19: 22 | O19: 68 | P19: 55 | Q19: 33 | R19: 83 | S19: 36 | T19: 63 | U19: 50 | V19: 43 | W19: 12 | X19: 80 | Y19: 76 | Z19: 18
A20: Пар_4 | C20: 81 | D20: 23 | E20: 37 | F20: 33 | G20: 46 | H20: 5 | I20: 44 | J20: 63 | K20: 17 | L20: 82 | M20: 76 | N20: 76 | O20: 29 | P20: 7 | Q20: 100 | R20: 77 | S20: 25 | T20: 71 | U20: 24 | V20: 91 | W20: 64 | X20: 63 | Y20: 12 | Z20: 77
A21: Пар_5 | C21: 10 | D21: 89 | E21: 66 | F21: 88 | G21: 86 | H21: 97 | I21: 7 | J21: 76 | K21: 43 | L21: 96 | M21: 48 | N21: 29 | O21: 68 | P21: 7 | Q21: 72 | R21: 55 | S21: 36 | T21: 48 | U21: 53 | V21: 1 | W21: 73 | X21: 91 | Y21: 61 | Z21: 30
A22: Пар_1 | B22: Ан-5 | C22: 18 | D22: 33 | E22: 3 | F22: 38 | G22: 84 | H22: 96 | I22: 22 | J22: 90 | K22: 91 | L22: 10 | M22: 12 | N22: 37 | O22: 89 | P22: 69 | Q22: 100 | R22: 70 | S22: 78 | T22: 94 | U22: 6 | V22: 27 | W22: 96 | X22: 37 | Y22: 45 | Z22: 54
A23: Пар_2 | C23: 52 | D23: 28 | E23: 73 | F23: 49 | G23: 6 | H23: 88 | I23: 90 | J23: 23 | K23: 71 | L23: 87 | M23: 22 | N23: 88 | O23: 49 | P23: 32 | Q23: 15 | R23: 97 | S23: 83 | T23: 53 | U23: 63 | V23: 97 | W23: 73 | X23: 51 | Y23: 38 | Z23: 9
A24: Пар_3 | C24: 4 | D24: 33 | E24: 69 | F24: 49 | G24: 84 | H24: 8 | I24: 95 | J24: 64 | K24: 42 | L24: 58 | M24: 13 | N24: 16 | O24: 55 | P24: 23 | Q24: 41 | R24: 72 | S24: 29 | T24: 37 | U24: 25 | V24: 30 | W24: 95 | X24: 67 | Y24: 18 | Z24: 55
A25: Пар_4 | C25: 39 | D25: 8 | E25: 65 | F25: 31 | G25: 12 | H25: 49 | I25: 46 | J25: 34 | K25: 82 | L25: 87 | M25: 66 | N25: 1 | O25: 21 | P25: 40 | Q25: 94 | R25: 64 | S25: 97 | T25: 82 | U25: 42 | V25: 53 | W25: 74 | X25: 43 | Y25: 91 | Z25: 54
A26: Пар_5 | C26: 73 | D26: 63 | E26: 15 | F26: 72 | G26: 52 | H26: 81 | I26: 44 | J26: 22 | K26: 22 | L26: 94 | M26: 4 | N26: 71 | O26: 68 | P26: 39 | Q26: 29 | R26: 67 | S26: 10 | T26: 60 | U26: 36 | V26: 37 | W26: 82 | X26: 12 | Y26: 38 | Z26: 20
C28: =IFERROR(IF(SUMPRODUCT(--($A2:$A$26=$A$2),C$2:C26)=0,"",SUMPRODUCT(--($A2:$A$26=$A$2),C$2:C26)),"") -> 164 | D28: =IFERROR(IF(SUMPRODUCT(--($A2:$A$26=$A$2),D$2:D26)=0,"",SUMPRODUCT(--($A2:$A$26=$A$2),D$2:D26)),"") -> 254 | E28: =IFERROR(IF(SUMPRODUCT(--($A2:$A$26=$A$2),E$2:E26)=0,"",SUMPRODUCT(--($A2:$A$26=$A$2),E$2:E26)),"") -> 141 | F28: =IFERROR(IF(SUMPRODUCT(--($A2:$A$26=$A$2),F$2:F26)=0,"",SUMPRODUCT(--($A2:$A$26=$A$2),F$2:F26)),"") -> 135 | G28: =IFERROR(IF(SUMPRODUCT(--($A2:$A$26=$A$2),G$2:G26)=0,"",SUMPRODUCT(--($A2:$A$26=$A$2),G$2:G26)),"") -> 379 | H28: =IFERROR(IF(SUMPRODUCT(--($A2:$A$26=$A$2),H$2:H26)=0,"",SUMPRODUCT(--($A2:$A$26=$A$2),H$2:H26)),"") -> 212 | I28: =IFERROR(IF(SUMPRODUCT(--($A2:$A$26=$A$2),I$2:I26)=0,"",SUMPRODUCT(--($A2:$A$26=$A$2),I$2:I26)),"") -> 262 | J28: =IFERROR(IF(SUMPRODUCT(--($A2:$A$26=$A$2),J$2:J26)=0,"",SUMPRODUCT(--($A2:$A$26=$A$2),J$2:J26)),"") -> 305 | K28: =IFERROR(IF(SUMPRODUCT(--($A2:$A$26=$A$2),K$2:K26)=0,"",SUMPRODUCT(--($A2:$A$26=$A$2),K$2:K26)),"") -> 323 | L28: =IFERROR(IF(SUMPRODUCT(--($A2:$A$26=$A$2),L$2:L26)=0,"",SUMPRODUCT(--($A2:$A$26=$A$2),L$2:L26)),"") -> 93 | M28: =IFERROR(IF(SUMPRODUCT(--($A2:$A$26=$A$2),M$2:M26)=0,"",SUMPRODUCT(--($A2:$A$26=$A$2),M$2:M26)),"") -> 145 | N28: =IFERROR(IF(SUMPRODUCT(--($A2:$A$26=$A$2),N$2:N26)=0,"",SUMPRODUCT(--($A2:$A$26=$A$2),N$2:N26)),"") -> 200 | O28: =IFERROR(IF(SUMPRODUCT(--($A2:$A$26=$A$2),O$2:O26)=0,"",SUMPRODUCT(--($A2:$A$26=$A$2),O$2:O26)),"") -> 364 | P28: =IFERROR(IF(SUMPRODUCT(--($A2:$A$26=$A$2),P$2:P26)=0,"",SUMPRODUCT(--($A2:$A$26=$A$2),P$2:P26)),"") -> 256 | Q28: =IFERROR(IF(SUMPRODUCT(--($A2:$A$26=$A$2),Q$2:Q26)=0,"",SUMPRODUCT(--($A2:$A$26=$A$2),Q$2:Q26)),"") -> 336 | R28: =IFERROR(IF(SUMPRODUCT(--($A2:$A$26=$A$2),R$2:R26)=0,"",SUMPRODUCT(--($A2:$A$26=$A$2),R$2:R26)),"") -> 330 | S28: =IFERROR(IF(SUMPRODUCT(--($A2:$A$26=$A$2),S$2:S26)=0,"",SUMPRODUCT(--($A2:$A$26=$A$2),S$2:S26)),"") -> 221 | T28: =IFERROR(IF(SUMPRODUCT(--($A2:$A$26=$A$2),T$2:T26)=0,"",SUMPRODUCT(--($A2:$A$26=$A$2),T$2:T26)),"") -> 283 | U28: =IFERROR(IF(SUMPRODUCT(--($A2:$A$26=$A$2),U$2:U26)=0,"",SUMPRODUCT(--($A2:$A$26=$A$2),U$2:U26)),"") -> 190 | V28: =IFERROR(IF(SUMPRODUCT(--($A2:$A$26=$A$2),V$2:V26)=0,"",SUMPRODUCT(--($A2:$A$26=$A$2),V$2:V26)),"") -> 365 | W28: =IFERROR(IF(SUMPRODUCT(--($A2:$A$26=$A$2),W$2:W26)=0,"",SUMPRODUCT(--($A2:$A$26=$A$2),W$2:W26)),"") -> 278 | X28: =IFERROR(IF(SUMPRODUCT(--($A2:$A$26=$A$2),X$2:X26)=0,"",SUMPRODUCT(--($A2:$A$26=$A$2),X$2:X26)),"") -> 208 | Y28: =IFERROR(IF(SUMPRODUCT(--($A2:$A$26=$A$2),Y$2:Y26)=0,"",SUMPRODUCT(--($A2:$A$26=$A$2),Y$2:Y26)),"") -> 232 | Z28: =IFERROR(IF(SUMPRODUCT(--($A2:$A$26=$A$2),Z$2:Z26)=0,"",SUMPRODUCT(--($A2:$A$26=$A$2),Z$2:Z26)),"") -> 235

Sheet Лист3
